fUST/lending_fUST_20250618
["ID","MTS","AMOUNT","RATE_DAILY","PERIOD"]
[366324817,1750188641372,-460.0,0.00022465,6]
[366324818,1750188641381,-460.0,0.00022465,6]
[366324819,1750188641391,-319.0,0.00022487,2]
[366324820,1750188641400,-744.18,0.00022513,6]
[366324821,1750188641410,-460.0,0.00022575,6]
[366324822,1750188641419,-460.0,0.00022575,6]
[366324823,1750188641428,-424.8,0.00022575,6]
[366324824,1750188641437,-460.0,0.00022575,6]
[366324825,1750188641447,-1345.19,0.00022575,6]
[366324826,1750188641457,-460.0,0.00022575,6]
[366324827,1750188641466,-750.89,0.00022575,6]
[366324828,1750188641475,-1248.39,0.00022575,6]
[366324829,1750188641487,-460.0,0.00022575,6]
[366324830,1750188641497,-709.63,0.00022575,6]
[366324831,1750188641506,-1010.44,0.00022575,6]
[366324832,1750188641515,-460.0,0.00022575,6]
[366324833,1750188641524,-460.0,0.00022575,6]
[366324834,1750188641534,-694.92,0.00022575,6]
[366324835,1750188641543,-460.0,0.00022575,6]
[366324836,1750188641552,-164.84,0.00022575,6]
[366324837,1750188641563,-214.36718605,0.00022575,6]
[366324838,1750188641573,-460.0,0.00022575,6]
[366324839,1750188641582,-460.0,0.00022575,6]
[366324840,1750188641591,-460.0,0.00022575,6]
[366324841,1750188641601,-460.0,0.00022575,6]
[366324842,1750188641610,-599.11,0.00022575,6]
[366324843,1750188641619,-464.2,0.00022575,6]
[366324844,1750188641629,-553.64,0.00022575,6]
[366324845,1750188641639,-460.0,0.00022575,6]
[366324846,1750188641648,-460.0,0.00022575,6]
[366324847,1750188641657,-460.0,0.00022575,6]
[366324848,1750188641667,-460.0,0.00022575,6]
[366324849,1750188641676,-334.63,0.00022575,6]
[366324850,1750188641685,-942.55,0.00022575,6]
[366324851,1750188641695,-532.92,0.00022575,6]
[366324852,1750188641704,-2525.02,0.00022575,6]
[366324853,1750188641713,-460.0,0.00022575,6]
[366324854,1750188641722,-460.0,0.00022575,6]
[366324855,1750188641733,-338.74207941,0.0002259,7]
[366324856,1750188641743,-744.18,0.00022613,4]
[366324857,1750188641752,-460.0,0.00022684,6]
[366324858,1750188641761,-460.0,0.00022684,6]
[366324859,1750188641771,-460.0,0.00022684,6]
[366324860,1750188641780,-1345.19,0.00022684,6]
[366324861,1750188641790,-460.0,0.00022684,6]
[366324862,1750188641799,-750.89,0.00022684,6]
[366324863,1750188641808,-1248.39,0.00022684,6]
[366324864,1750188641817,-460.0,0.00022684,6]
[366324865,1750188641826,-709.63,0.00022684,6]
[366324866,1750188641836,-1010.44,0.00022684,6]
[366324867,1750188641846,-460.0,0.00022684,6]
[366324868,1750188641856,-460.0,0.00022684,6]
[366324869,1750188641865,-694.92,0.00022684,6]
[366324870,1750188641874,-460.0,0.00022684,6]
[366324871,1750188641884,-460.0,0.00022684,6]
[366324872,1750188641893,-460.0,0.00022684,6]
[366324873,1750188641902,-530.9,0.00022684,6]
[366324874,1750188641912,-460.0,0.00022684,6]
[366324875,1750188641921,-599.11,0.00022684,6]
[366324876,1750188641930,-464.2,0.00022684,6]
[366324877,1750188641939,-553.64,0.00022684,6]
[366324878,1750188641949,-236.46039243,0.00022684,6]
[366324879,1750188641958,-460.0,0.00022684,6]
[366324880,1750188641967,-460.0,0.00022684,6]
[366324881,1750188641977,-942.55,0.00022684,6]
[366324882,1750188641987,-532.92,0.00022684,6]
[366324883,1750188641997,-2525.02,0.00022684,6]
[366324884,1750188642006,-460.0,0.00022684,6]
[366324885,1750188642016,-460.0,0.00022684,6]
[366324886,1750188642025,-424.62582665,0.00022692,2]
[366324887,1750188642158,-160.0,0.00022692,2]
[366324888,1750188642168,-213.39869953,0.00022692,2]
[366324889,1750188642178,-160.0,0.00022692,2]
[366324890,1750188642187,-845.62440851,0.00022692,2]
[366324891,1750188642197,-835.82910252,0.00022692,2]
[366324892,1750188642206,-229.94211981,0.00022692,2]
[366324893,1750188642217,-744.18,0.00022713,3]
[366324894,1750188642226,-338.74207941,0.00022728,7]
[366324895,1750188642237,-168.0,0.00022732,2]
[366324896,1750188642246,-5000.0,0.00022765,2]
[366324897,1750188642256,-460.0,0.00022794,6]
[366324898,1750188642265,-460.0,0.00022794,6]
[366324899,1750188642275,-373.52,0.00022794,6]
[366324900,1750188642285,-1345.19,0.00022794,6]
[366324901,1750188642294,-460.0,0.00022794,6]
[366324902,1750188642303,-750.89,0.00022794,6]
[366324903,1750188642312,-1248.39,0.00022794,6]
[366324904,1750188642321,-460.0,0.00022794,6]
[366324905,1750188642331,-709.63,0.00022794,6]
[366324906,1750188642340,-1010.44,0.00022794,6]
[366324907,1750188642350,-460.0,0.00022794,6]
[366324908,1750188642359,-460.0,0.00022794,6]
[366324909,1750188642368,-694.92,0.00022794,6]
[366324910,1750188642377,-460.0,0.00022794,6]
[366324911,1750188642386,-460.0,0.00022794,6]
[366324912,1750188642395,-418.27,0.00022794,6]
[366324913,1750188642405,-460.0,0.00022794,6]
[366324914,1750188642414,-599.11,0.00022794,6]
[366324915,1750188642423,-464.2,0.00022794,6]
[366324916,1750188642432,-553.64,0.00022794,6]
[366324917,1750188642442,-460.0,0.00022794,6]
[366324918,1750188642451,-460.0,0.00022794,6]
[366324919,1750188642460,-942.55,0.00022794,6]
[366324920,1750188642470,-532.92,0.00022794,6]
[366324921,1750188642479,-2525.02,0.00022794,6]
[366324922,1750188642490,-460.0,0.00022794,6]
[366324923,1750188642500,-460.0,0.00022794,6]
[366324924,1750188642509,-744.18,0.00022813,7]
[366324925,1750188642519,-1000.0,0.00022814,2]
[366324926,1750188642529,-1000.0,0.00022826,2]
[366324927,1750188642539,-1000.0,0.00022836,2]
[366324928,1750188642548,-5888.0,0.00022862,2]
[366324929,1750188642559,-338.74207941,0.00022866,8]
[366324930,1750188642572,-309.5,0.00022904,6]
[366324931,1750188642582,-438.07,0.00022904,6]
[366324932,1750188642591,-1345.19,0.00022904,6]
[366324933,1750188642600,-460.0,0.00022904,6]
[366324934,1750188642612,-750.89,0.00022904,6]
[366324935,1750188642622,-1248.39,0.00022904,6]
[366324936,1750188642631,-460.0,0.00022904,6]
[366324937,1750188642643,-709.63,0.00022904,6]
[366324938,1750188642652,-1010.44,0.00022904,6]
[366324939,1750188642661,-460.0,0.00022904,6]
[366324940,1750188642671,-460.0,0.00022904,6]
[366324941,1750188642680,-694.92,0.00022904,6]
[366324942,1750188642690,-460.0,0.00022904,6]
[366324943,1750188642699,-460.0,0.00022904,6]
[366324944,1750188642708,-460.0,0.00022904,6]
[366324945,1750188642717,-464.2,0.00022904,6]
[366324946,1750188642728,-599.11,0.00022904,6]
[366324947,1750188642739,-553.64,0.00022904,6]
[366324948,1750188642748,-460.0,0.00022904,6]
[366324949,1750188642758,-460.0,0.00022904,6]
[366324950,1750188642768,-942.55,0.00022904,6]
[366324951,1750188642778,-532.92,0.00022904,6]
[366324952,1750188642788,-2525.02,0.00022904,6]
[366324953,1750188642797,-460.0,0.00022904,6]
[366324954,1750188642807,-460.0,0.00022904,6]
[366324955,1750188642817,-744.18,0.00022913,4]
[366324956,1750188642826,-500.0,0.00022954,2]
[366324957,1750188642836,-156.0289342,0.00022959,2]
[366324958,1750188642845,-338.74207941,0.00023003,8]
[366324959,1750188642855,-1345.19,0.00023013,6]
[366324960,1750188642864,-460.0,0.00023013,6]
[366324961,1750188642873,-750.89,0.00023013,6]
[366324962,1750188642883,-1248.39,0.00023013,6]
[366324963,1750188642892,-460.0,0.00023013,6]
[366324964,1750188642901,-709.63,0.00023013,6]
[366324965,1750188642911,-1010.44,0.00023013,6]
[366324966,1750188642921,-460.0,0.00023013,6]
[366324967,1750188642930,-460.0,0.00023013,6]
[366324968,1750188642940,-694.92,0.00023013,6]
[366324969,1750188642950,-460.0,0.00023013,6]
[366324970,1750188642959,-460.0,0.00023013,6]
[366324971,1750188642969,-460.0,0.00023013,6]
[366324972,1750188642978,-599.11,0.00023013,6]
[366324973,1750188642988,-464.2,0.00023013,6]
[366324974,1750188642997,-553.64,0.00023013,6]
[366324975,1750188643007,-460.0,0.00023013,6]
[366324976,1750188643018,-460.0,0.00023013,6]
[366324977,1750188643028,-942.55,0.00023013,6]
[366324978,1750188643037,-532.92,0.00023013,6]
[366324980,1750188643047,-2525.02,0.00023013,6]
[366324981,1750188643057,-460.0,0.00023013,6]
[366324982,1750188643067,-460.0,0.00023013,6]
[366324983,1750188643078,-744.18,0.00023013,3]
[366324984,1750188643088,-744.18,0.00023113,3]
[366324985,1750188643098,-1345.19,0.00023123,6]
[366324986,1750188643108,-460.0,0.00023123,6]
[366324987,1750188643117,-750.89,0.00023123,6]
[366324988,1750188643127,-1248.39,0.00023123,6]
[366324989,1750188643136,-460.0,0.00023123,6]
[366324990,1750188643146,-709.63,0.00023123,6]
[366324991,1750188643155,-1010.44,0.00023123,6]
[366324992,1750188643165,-460.0,0.00023123,6]
[366324994,1750188643175,-460.0,0.00023123,6]
[366324996,1750188643186,-694.92,0.00023123,6]
[366324997,1750188643195,-460.0,0.00023123,6]
[366324998,1750188643205,-460.0,0.00023123,6]
[366324999,1750188643215,-460.0,0.00023123,6]
[366325000,1750188643225,-599.11,0.00023123,6]
[366325001,1750188643235,-464.2,0.00023123,6]
[366325002,1750188643245,-553.64,0.00023123,6]
[366325003,1750188643255,-460.0,0.00023123,6]
[366325004,1750188643265,-460.0,0.00023123,6]
[366325006,1750188643274,-942.55,0.00023123,6]
[366325007,1750188643283,-532.92,0.00023123,6]
[366325008,1750188643293,-2525.02,0.00023123,6]
[366325009,1750188643303,-460.0,0.00023123,6]
[366325010,1750188643312,-460.0,0.00023123,6]
[366325011,1750188643321,-338.74207941,0.00023141,8]
[366325012,1750188643331,-923.09,0.000232,7]
[366325013,1750188643341,-744.18,0.00023213,3]
[366325014,1750188643350,-1345.19,0.00023232,6]
[366325015,1750188643360,-460.0,0.00023232,6]
[366325016,1750188643370,-750.89,0.00023232,6]
[366325017,1750188643379,-1248.39,0.00023232,6]
[366325018,1750188643389,-460.0,0.00023232,6]
[366325019,1750188643398,-709.63,0.00023232,6]
[366325020,1750188643407,-1010.44,0.00023232,6]
[366325021,1750188643417,-460.0,0.00023232,6]
[366325022,1750188643426,-460.0,0.00023232,6]
[366325023,1750188643435,-694.92,0.00023232,6]
[366325024,1750188643444,-460.0,0.00023232,6]
[366325025,1750188643453,-460.0,0.00023232,6]
[366325026,1750188643463,-346.87,0.00023232,6]
[366325027,1750188643472,-599.11,0.00023232,6]
[366325028,1750188643481,-464.2,0.00023232,6]
[366325029,1750188643492,-553.64,0.00023232,6]
[366325030,1750188643501,-460.0,0.00023232,6]
[366325031,1750188643510,-460.0,0.00023232,6]
[366325032,1750188643520,-942.55,0.00023232,6]
[366325033,1750188643529,-532.92,0.00023232,6]
[366325034,1750188643539,-2525.02,0.00023232,6]
[366325035,1750188643549,-460.0,0.00023232,6]
[366325036,1750188643558,-460.0,0.00023232,6]
[366325037,1750188643573,-500.0,0.00023257,2]
[366325038,1750188643582,-156.0289342,0.0002326,2]
[366325039,1750188643592,-338.74207941,0.00023279,8]
[366325040,1750188643603,-744.18,0.00023313,7]
[366325041,1750188643612,-5000.0,0.00023313,2]
[366325042,1750188643623,-1345.19,0.00023342,6]
[366325043,1750188643632,-460.0,0.00023342,6]
[366325044,1750188643644,-750.89,0.00023342,6]
[366325045,1750188643653,-1248.39,0.00023342,6]
[366325046,1750188643663,-460.0,0.00023342,6]
[366325047,1750188643672,-709.63,0.00023342,6]
[366325048,1750188643681,-1010.44,0.00023342,6]
[366325049,1750188643691,-460.0,0.00023342,6]
[366325050,1750188643701,-460.0,0.00023342,6]
[366325051,1750188643710,-694.92,0.00023342,6]
[366325052,1750188643720,-460.0,0.00023342,6]
[366325053,1750188643730,-272.67,0.00023342,6]
[366325054,1750188643744,-599.11,0.00023342,6]
[366325055,1750188643753,-464.2,0.00023342,6]
[366325056,1750188643762,-553.64,0.00023342,6]
[366325057,1750188643773,-221.34,0.00023342,6]
[366325058,1750188643783,-460.0,0.00023342,6]
[366325059,1750188643793,-942.55,0.00023342,6]
[366325060,1750188643803,-532.92,0.00023342,6]
[366325061,1750188643813,-2525.02,0.00023342,6]
[366325062,1750188643823,-460.0,0.00023342,6]
[366325063,1750188643833,-376.2663243,0.00023342,6]
[366325065,1750188643843,-502.37827813,0.0002335,2]
[366325066,1750188643853,-168.0,0.00023353,2]
[366325067,1750188643863,-1500.0,0.00023384,2]
[366325068,1750188643872,-168.0,0.00023395,2]
[366325069,1750188643882,-3351.81,0.000234,7]
[366325070,1750188643892,-500.0,0.0002341,2]
[366325071,1750188643902,-500.0,0.0002341,2]
[366325072,1750188643912,-500.0,0.0002341,2]
[366325073,1750188643922,-380.9116038,0.0002341,2]
[366325074,1750188643932,-500.0,0.0002341,2]
[366325075,1750188643943,-500.0,0.0002341,2]
[366325076,1750188643955,-744.18,0.00023413,2]
[366325077,1750188643965,-338.74207941,0.00023417,9]
[366325078,1750188643975,-1345.19,0.00023452,6]
[366325079,1750188643985,-460.0,0.00023452,6]
[366325080,1750188643998,-750.89,0.00023452,6]
[366325081,1750188644008,-1248.39,0.00023452,6]
[366325082,1750188644018,-231.3500307,0.00023452,6]
[366325083,1750188644028,-709.63,0.00023452,6]
[366325084,1750188644038,-1010.44,0.00023452,6]
[366325085,1750188644048,-382.98352507,0.00023452,6]
[366325086,1750188644057,-460.0,0.00023452,6]
[366325087,1750188644068,-694.92,0.00023452,6]
[366325088,1750188644079,-460.0,0.00023452,6]
[366325089,1750188644089,-599.11,0.00023452,6]
[366325090,1750188644099,-464.2,0.00023452,6]
[366325091,1750188644109,-553.64,0.00023452,6]
[366325092,1750188644118,-460.0,0.00023452,6]
[366325093,1750188644128,-942.55,0.00023452,6]
[366325094,1750188644138,-532.92,0.00023452,6]
[366325095,1750188644148,-2525.02,0.00023452,6]
[366325096,1750188644158,-460.0,0.00023452,6]
[366325097,1750188644167,-215.0738,0.00023486,2]
[366325098,1750188644179,-168.0,0.00023493,2]
[366325099,1750188644189,-500.0,0.000235,2]
[366325100,1750188644200,-503.34321714,0.000235,2]
[366325101,1750188644210,-744.18,0.00023513,7]
[366325102,1750188644219,-168.0,0.0002353,2]
[366325103,1750188644229,-338.74207941,0.00023555,9]
[366325104,1750188644243,-1345.19,0.00023561,6]
[366325105,1750188644254,-460.0,0.00023561,6]
[366325106,1750188644263,-750.89,0.00023561,6]
[366325107,1750188644273,-1248.39,0.00023561,6]
[366325108,1750188644283,-709.63,0.00023561,6]
[366325109,1750188644293,-1010.44,0.00023561,6]
[366325110,1750188644303,-460.0,0.00023561,6]
[366325111,1750188644313,-694.92,0.00023561,6]
[366325112,1750188644322,-460.0,0.00023561,6]
[366325113,1750188644332,-599.11,0.00023561,6]
[366325114,1750188644342,-464.2,0.00023561,6]
[366325115,1750188644352,-553.64,0.00023561,6]
[366325117,1750188644361,-460.0,0.00023561,6]
[366325119,1750188644371,-942.55,0.00023561,6]
[366325121,1750188644382,-532.92,0.00023561,6]
[366325122,1750188644392,-2525.02,0.00023561,6]
[366325123,1750188644401,-300.25,0.00023561,6]
[366325124,1750188644411,-156.0289342,0.00023562,2]
[366325125,1750188644419,-153.0,0.00023569,2]
[366325126,1750188644429,-153.0,0.00023569,2]
[366325127,1750188644438,-153.0,0.00023569,2]
[366325128,1750188644448,-153.0,0.00023569,2]
[366325129,1750188644457,-37779.06720771,0.00023597,2]
[366325130,1750188644466,-60111.95554856,0.000236,2]
[366325131,1750188644476,-82741.85,0.000236,2]
[366325132,1750188644489,-744.18,0.00023613,6]
[366325133,1750188644498,-160.0,0.00023615,2]
[366325134,1750188644508,-1345.19,0.00023671,6]
[366325135,1750188644517,-563.77,0.00023671,6]
[366325136,1750188644527,-750.89,0.00023671,6]
[366325137,1750188644536,-1248.39,0.00023671,6]
[366325138,1750188644545,-709.63,0.00023671,6]
[366325139,1750188644554,-1010.44,0.00023671,6]
[366325140,1750188644566,-460.0,0.00023671,6]
[366325141,1750188644576,-694.92,0.00023671,6]
[366325142,1750188644585,-460.0,0.00023671,6]
[366325143,1750188644594,-599.11,0.00023671,6]
[366325144,1750188644604,-464.2,0.00023671,6]
[366325145,1750188644614,-553.64,0.00023671,6]
[366325146,1750188644623,-433.17,0.00023671,6]
[366325147,1750188644633,-942.55,0.00023671,6]
[366325148,1750188644643,-532.92,0.00023671,6]
[366325149,1750188644652,-2525.02,0.00023671,6]
[366325150,1750188644662,-41330.03756348,0.00023687,2]
[366325151,1750188644671,-151.0,0.00023693,6]
[366325152,1750188644680,-338.74207941,0.00023693,9]
[366325153,1750188644690,-13893.80135385,0.000237,2]
[366325154,1750188644700,-744.18,0.00023713,7]
[366325155,1750188644710,-500.0,0.00023773,2]
[366325156,1750188644719,-500.0,0.00023773,2]
[366325157,1750188644728,-500.0,0.00023773,2]
[366325158,1750188644740,-500.0,0.00023773,2]
[366325159,1750188644750,-500.0,0.00023773,2]
[366325160,1750188644760,-500.0,0.00023773,2]
[366325161,1750188644770,-506.87102913,0.00023773,2]
[366325162,1750188644779,-500.0,0.00023773,2]
[366325163,1750188644788,-500.0,0.00023773,2]
[366325164,1750188644797,-500.0,0.00023773,2]
[366325165,1750188644806,-500.0,0.00023773,2]
[366325166,1750188644815,-504.43395862,0.00023773,2]
[366325167,1750188644825,-500.0,0.00023773,2]
[366325168,1750188644834,-500.0,0.00023773,2]
[366325169,1750188644843,-491.86024123,0.00023773,2]
[366325170,1750188644853,-500.0,0.00023773,2]
[366325171,1750188644862,-500.0,0.00023773,2]
[366325172,1750188644871,-500.0,0.00023773,2]
[366325173,1750188644881,-600.0,0.00023773,2]
[366325174,1750188644890,-500.0,0.00023773,2]
[366325175,1750188644900,-1345.19,0.0002378,6]
[366325176,1750188644909,-750.89,0.0002378,6]
[366325177,1750188644918,-1248.39,0.0002378,6]
[366325178,1750188644927,-709.63,0.0002378,6]
[366325179,1750188644936,-1010.44,0.0002378,6]
[366325180,1750188644945,-460.0,0.0002378,6]
[366325181,1750188644954,-694.92,0.0002378,6]
[366325182,1750188644964,-460.0,0.0002378,6]
[366325183,1750188644973,-11233.29213608,0.0002378,5]
[366325184,1750188644982,-599.11,0.0002378,6]
[366325185,1750188644994,-464.2,0.0002378,6]
[366325186,1750188645003,-553.64,0.0002378,6]
[366325187,1750188645013,-942.55,0.0002378,6]
[366325188,1750188645023,-532.92,0.0002378,6]
[366325189,1750188645032,-2525.02,0.0002378,6]
[366325190,1750188645042,-135235.9412712,0.00023788,2]
[366325191,1750188645051,-98650.95498168,0.000238,2]
[366325192,1750188645060,-260964.68269966,0.000238,2]
[366325193,1750188645070,-151.0,0.000238,7]
[366325194,1750188645079,-153.73684,0.000238,7]
[366325195,1750188645088,-151.0,0.000238,7]
[366325196,1750188645098,-151.0,0.000238,7]
[366325197,1750188645107,-744.18,0.00023813,6]
[366325198,1750188645116,-420.0,0.00023816,2]
[366325199,1750188645126,-338.74207941,0.00023831,10]
[366325200,1750188645136,-151.0,0.00023844,6]
[366325201,1750188645145,-500.0,0.00023854,2]
[366325202,1750188645154,-270.4,0.00023858,2]
[366325203,1750188645164,-156.0289342,0.00023863,2]
[366325204,1750188645173,-1345.19,0.0002389,6]
[366325205,1750188645183,-750.89,0.0002389,6]
[366325206,1750188645192,-1248.39,0.0002389,6]
[366325207,1750188645201,-709.63,0.0002389,6]
[366325208,1750188645210,-1010.44,0.0002389,6]
[366325209,1750188645219,-250.11114961,0.0002389,6]
[366325210,1750188645228,-694.92,0.0002389,6]
[366325211,1750188645238,-460.0,0.0002389,6]
[366325212,1750188645247,-599.11,0.0002389,6]
[366325213,1750188645257,-464.2,0.0002389,6]
[366325214,1750188645266,-553.64,0.0002389,6]
[366325215,1750188645276,-942.55,0.0002389,6]
[366325216,1750188645285,-532.92,0.0002389,6]
[366325217,1750188645294,-2525.02,0.0002389,6]
[366325218,1750188645303,-744.18,0.00023913,5]
[366325219,1750188645313,-2000.0,0.00023932,2]
[366325220,1750188645322,-693.45802492,0.00023958,2]
[366325221,1750188645331,-603.65051825,0.00023958,2]
[366325222,1750188645341,-1000.0,0.00023958,2]
[366325223,1750188645350,-338.74207941,0.00023969,10]
[366325224,1750188645360,-151.0,0.00023995,7]
[366325225,1750188645369,-11133.47495546,0.00024,2]
[366325226,1750188645379,-34261.81461364,0.00024,2]
[366325227,1750188645388,-1345.19,0.00024,6]
[366325228,1750188645398,-750.89,0.00024,6]
[366325229,1750188645407,-1248.39,0.00024,6]
[366325230,1750188645417,-709.63,0.00024,6]
[366325231,1750188645426,-1010.44,0.00024,6]
[366325232,1750188645435,-694.92,0.00024,6]
[366325233,1750188645445,-456.02746385,0.00024,6]
[366325234,1750188645454,-160.0,0.00024,7]
[366325235,1750188645463,-76654.33646717,0.00024,2]
[366325236,1750188645472,-229.94211981,0.00024,7]
[366325237,1750188645482,-599.11,0.00024,6]
[366325238,1750188645493,-464.2,0.00024,6]
[366325239,1750188645502,-553.64,0.00024,6]
[366325240,1750188645512,-942.55,0.00024,6]
[366325241,1750188645521,-532.92,0.00024,6]
[366325242,1750188645530,-2525.02,0.00024,6]
[366325243,1750188645539,-744.18,0.00024013,3]
[366325244,1750188645550,-168.0,0.0002402,2]
[366325245,1750188645561,-655.48,0.000241,2]
[366325246,1750188645575,-718.648217,0.00024106,3]
[366325247,1750188645584,-338.74207941,0.00024107,10]
[366325248,1750188645595,-1345.19,0.00024109,6]
[366325249,1750188645605,-750.89,0.00024109,6]
[366325250,1750188645614,-1248.39,0.00024109,6]
[366325251,1750188645624,-709.63,0.00024109,6]
[366325252,1750188645633,-1010.44,0.00024109,6]
[366325253,1750188645643,-694.92,0.00024109,6]
[366325254,1750188645652,-599.11,0.00024109,6]
[366325255,1750188645661,-464.2,0.00024109,6]
[366325256,1750188645671,-553.64,0.00024109,6]
[366325257,1750188645680,-460.0,0.00024109,6]
[366325258,1750188645689,-460.0,0.00024109,6]
[366325259,1750188645698,-460.0,0.00024109,6]
[366325260,1750188645707,-942.55,0.00024109,6]
[366325261,1750188645716,-532.92,0.00024109,6]
[366325262,1750188645725,-2525.02,0.00024109,6]
[366325263,1750188645841,-744.18,0.00024113,6]
[366325264,1750188645863,-179.859304,0.00024142,2]
[366325265,1750188645873,-151.0,0.00024146,7]
[366325266,1750188645882,-156.0289342,0.00024164,2]
[366325267,1750188645893,-744.18,0.00024213,6]
[366325268,1750188645903,-964.0,0.00024214,2]
[366325269,1750188645912,-653.0,0.00024214,2]
[366325270,1750188645921,-406.0,0.00024214,2]
[366325271,1750188645930,-1345.19,0.00024219,6]
[366325272,1750188645940,-750.89,0.00024219,6]
[366325273,1750188645949,-1248.39,0.00024219,6]
[366325274,1750188645958,-709.63,0.00024219,6]
[366325275,1750188645968,-1010.44,0.00024219,6]
[366325276,1750188645977,-694.92,0.00024219,6]
[366325277,1750188645987,-599.11,0.00024219,6]
[366325278,1750188645996,-464.2,0.00024219,6]
[366325279,1750188646005,-553.64,0.00024219,6]
[366325280,1750188646014,-942.55,0.00024219,6]
[366325281,1750188646024,-532.92,0.00024219,6]
[366325282,1750188646033,-2525.02,0.00024219,6]
[366325283,1750188646043,-338.74207941,0.00024245,10]
[366325284,1750188646052,-500.0,0.00024263,2]
[366325285,1750188646062,-800.0,0.00024264,2]
[366325286,1750188646071,-2200.0,0.00024275,2]
[366325287,1750188646081,-200.0,0.0002428,10]
[366325288,1750188646091,-151.0,0.00024296,7]
[366325289,1750188646100,-1747.0,0.00024299,3]
[366325290,1750188646110,-1747.0,0.00024299,3]
[366325291,1750188646119,-1747.0,0.00024299,3]
[366325292,1750188646129,-759.96256108,0.00024299,3]
[366325293,1750188646138,-153.0,0.00024299,3]
[366325294,1750188646148,-156.01367261,0.00024299,3]
[366325295,1750188646157,-317.0,0.00024299,3]
[366325296,1750188646166,-317.0,0.00024299,3]
[366325297,1750188646177,-317.0,0.00024299,3]
[366325298,1750188646185,-317.0,0.00024299,3]
[366325299,1750188646195,-317.0,0.00024299,3]
[366325300,1750188646205,-317.0,0.00024299,3]
[366325301,1750188646214,-317.0,0.00024299,3]
[366325302,1750188646223,-317.0,0.00024299,3]
[366325303,1750188646233,-317.0,0.00024299,3]
[366325304,1750188646244,-317.0,0.00024299,3]
[366325305,1750188646254,-317.0,0.00024299,3]
[366325306,1750188646264,-317.0,0.00024299,3]
[366325307,1750188646273,-317.0,0.00024299,3]
[366325308,1750188646283,-317.0,0.00024299,3]
[366325309,1750188646293,-317.0,0.00024299,3]
[366325310,1750188646302,-317.0,0.00024299,3]
[366325311,1750188646311,-317.0,0.00024299,3]
[366325312,1750188646321,-317.0,0.00024299,3]
[366325313,1750188646330,-317.0,0.00024299,3]
[366325314,1750188646339,-317.0,0.00024299,3]
[366325315,1750188646349,-168.93924067,0.00024299,3]
[366325316,1750188646358,-923.09,0.000243,7]
[366325317,1750188646368,-59298.84700146,0.000243,2]
[366325318,1750188646377,-160.0,0.000243,3]
[366325319,1750188646387,-229.94211981,0.000243,3]
[366325320,1750188646396,-151.0,0.000243,7]
[366325321,1750188646406,-800.0,0.00024312,2]
[366325323,1750188646415,-744.18,0.00024313,5]
[366325325,1750188646425,-1000.0,0.00024321,2]
[366325327,1750188646434,-1000.0,0.00024321,2]